[Event "DMP Ekstraliga 2020"]
[Site "Krakow"]
[Date "2020.08.31"]
[Round "6.28"]
[White "Bobras, Piotr"]
[Black "Nguyen, Piotr"]
[Result "1/2-1/2"]
[ECO "B36"]
[WhiteElo "2487"]
[BlackElo "2422"]
[Annotator "ChessBase"]
[PlyCount "42"]
[EventDate "2020.08.26"]
[EventType "team-tourn"]
[EventCountry "POL"]
[SourceTitle "playchess.com"]
[Source "ChessBase"]
[SourceQuality "1"]
[WhiteTeam "Miedz Legnica"]
[BlackTeam "Dwie Wieze Krakow"]
[TimeControl "30/5400+30:1800+30"]

1. e4 {[%emt 0:00:00]} c5 {[%emt 0:00:00]} 2. Nf3 {[%emt 0:00:00]} Nc6 {[%emt 0:00:00]} 3. d4 {[%emt 0:00:00]} cxd4 {[%emt 0:00:00]} 4. Nxd4 {[%emt 0:00:00]} g6 {[%emt 0:00:00]} 5. c4 {[%emt 0:00:23]} Nf6 {[%emt 0:00:14]} 6. Nc3 {[%emt 0:00:06]} d6 {[%emt 0:00:05]} 7. Be2 {[%emt 0:00:51]} Nxd4 {[%emt 0:00:14]} 8. Qxd4 {[%emt 0:00:05]} Bg7 {[%emt 0:00:03]} 9. Be3 {[%emt 0:00:11]} O-O {[%emt 0:00:06]} 10. Qd2 {[%emt 0:00:04]} a5 {[%emt 0:00:23]} 11. O-O {[%emt 0:01:07]} a4 {[%emt 0:00:18]} 12. Bd4 {[%emt 0:02:16]} Qa5 {[%emt 0:01:06]} 13. Rad1 {[%emt 0:00:48]} Bd7 {[%emt 0:01:34]} 14. Qe3 {[%emt 0:03:41]} Bc6 {[%emt 0:01:17]} 15. Nd5 {[%emt 0:04:04]} Bxd5 {[%emt 0:00:07]} 16. exd5 {[%emt 0:00:07]} Rfe8 {[%emt 0:00:17]} 17. h4 {[%emt 0:04:57]} h5 {[%emt 0:01:02]} 18. Bc3 {[%emt 0:31:38]} Qa7 {[%emt 0:04:50]} 19. Bd4 {[%emt 0:03:18]} Qa5 {[%emt 0:00:13]} 20. Bc3 {[%emt 0:00:11]} Qa7 {[%emt 0:03:00]} 21. Bd4 {[%emt 0:00:08]} Qa5 {[%emt 0:00:08]} 1/2-1/2

[Event "DMP Ekstraliga 2020"]
[Site "Krakow"]
[Date "2020.08.31"]
[Round "6.29"]
[White "Zwardon, Vojtech"]
[Black "Murdzia, Piotr"]
[Result "1/2-1/2"]
[ECO "A20"]
[WhiteElo "2481"]
[BlackElo "2423"]
[Annotator "ChessBase"]
[PlyCount "185"]
[EventDate "2020.08.26"]
[EventType "team-tourn"]
[EventCountry "POL"]
[SourceTitle "playchess.com"]
[Source "ChessBase"]
[SourceQuality "1"]
[WhiteTeam "Dwie Wieze Krakow"]
[BlackTeam "Miedz Legnica"]
[TimeControl "30/5400+30:1800+30"]

1. c4 {[%emt 0:00:31]} e5 {[%emt 0:00:00]} 2. g3 {[%emt 0:00:04]} Nf6 {[%emt 0:00:00]} 3. Bg2 {[%emt 0:00:03]} c6 {[%emt 0:00:11]} 4. Nf3 {[%emt 0:00:04]} e4 {[%emt 0:00:18]} 5. Nd4 {[%emt 0:00:02]} d5 {[%emt 0:00:35]} 6. cxd5 {[%emt 0:00:01]} Qxd5 {[%emt 0:00:48]} 7. e3 {[%emt 0:00:18]} Na6 {[%emt 0:04:19]} 8. Nc3 {[%emt 0:01:04]} Qe5 {[%emt 0:00:48]} 9. f4 {[%emt 0:03:02]} exf3 {[%emt 0:02:31]} 10. Nxf3 {[%emt 0:00:08]} Qh5 {[%emt 0:00:46]} 11. O-O {[%emt 0:01:09]} Bh3 {[%emt 0:03:24]} 12. Bxh3 {[%emt 0:02:18]} Qxh3 {[%emt 0:00:06]} 13. Qb3 {[%emt 0:00:08]} Qd7 {[%emt 0:12:58]} 14. d4 {[%emt 0:04:24]} Bb4 {[%emt 0:01:10]} 15. e4 {[%emt 0:03:19]} O-O {[%emt 0:02:11]} 16. e5 {[%emt 0:07:34]} Nd5 {[%emt 0:01:39]} 17. Nxd5 {[%emt 0:10:46]} Qxd5 {[%emt 0:02:07]} 18. Qxd5 {[%emt 0:00:24]} cxd5 {[%emt 0:00:04]} 19. a3 {[%emt 0:04:04]} Ba5 {[%emt 0:05:33]} 20. Be3 {[%emt 0:02:55]} Nc7 {[%emt 0:00:36]} 21. Nh4 {[%emt 0:08:20]} g6 {[%emt 0:03:18]} 22. Ng2 {[%emt 0:00:01]} Ne6 {[%emt 0:02:49]} 23. Nf4 {[%emt 0:00:22]} Nxf4 {[%emt 0:03:20]} 24. Rxf4 {[%emt 0:05:21]} f5 {[%emt 0:00:36]} 25. exf6 {[%emt 0:00:48]} Rae8 {[%emt 0:00:21]} 26. Rf3 {[%emt 0:07:19]} Bb6 {[%emt 0:04:40]} 27. Rd1 {[%emt 0:01:19]} Re4 {[%emt 0:00:35]} 28. Kg2 {[%emt 0:01:58]} Kf7 {[%emt 0:01:16]} 29. a4 {[%emt 0:00:30]} Rfe8 {[%emt 0:00:30]} 30. Rd3 {[%emt 0:14:27]} Rc8 {[%emt 0:09:09]} 31. Rb3 {[%emt 0:31:35]} Rc7 {[%emt 0:35:45]} 32. Rb4 {[%emt 0:04:41]} Rd7 {[%emt 0:13:29]} 33. Kf2 {[%emt 0:06:09]} h5 {[%emt 0:09:19]} 34. h4 {[%emt 0:00:30]} Re6 35. Bg5 {[%emt 0:02:54]} Re4 {[%emt 0:02:44]} 36. Rd3 {[%emt 0:00:30]} Ba5 {[%emt 0:00:33]} 37. Rb5 {[%emt 0:02:37]} Bb6 38. Kf3 Rxd4 {[%emt 0:03:17]} 39. Re3 {[%emt 0:02:24]} Bd8 {[%emt 0:06:21]} 40. Reb3 {[%emt 0:00:00]} b6 {[%emt 0:00:00]} 41. a5 {[%emt 0:00:00]} Bxf6 {[%emt 0:00:00]} 42. axb6 {[%emt 0:00:00]} axb6 {[%emt 0:00:00]} 43. Bxf6 {[%emt 0:00:00]} Kxf6 {[%emt 0:00:00]} 44. Rxb6+ {[%emt 0:00:00]} Kf5 {[%emt 0:00:00]} 45. Re3 {[%emt 0:00:00]} Re4 {[%emt 0:00:00]} 46. Rd3 {[%emt 0:00:00]} Re6 {[%emt 0:00:00]} 47. Rb4 {[%emt 0:00:00]} Re5 {[%emt 0:00:00]} 48. Ra3 {[%emt 0:00:00]} g5 {[%emt 0:00:00]} 49. hxg5 {[%emt 0:00:00]} Kxg5 {[%emt 0:00:00]} 50. Rd3 {[%emt 0:00:00]} Rf5+ {[%emt 0:00:00]} 51. Kg2 {[%emt 0:00:00]} Re7 {[%emt 0:00:00]} 52. Kh3 {[%emt 0:00:00]} Re4 {[%emt 0:00:00]} 53. Rb8 {[%emt 0:00:00]} d4 {[%emt 0:00:00]} 54. Rd8 {[%emt 0:00:00]} Rf2 {[%emt 0:00:00]} 55. Rd5+ {[%emt 0:00:00]} Kg6 {[%emt 0:00:00]} 56. Rd6+ {[%emt 0:00:00]} Kg5 {[%emt 0:01:31]} 57. Rb3 {[%emt 0:00:00]} h4 {[%emt 0:00:24]} 58. Rb5+ Rf5 {[%emt 0:00:08]} 59. Rdd5 {[%emt 0:00:00]} Rxd5 {[%emt 0:00:30]} 60. Rxd5+ {[%emt 0:00:00]} Kf6 {[%emt 0:00:09]} 61. g4 {[%emt 0:00:00]} Ke6 {[%emt 0:00:30]} 62. Rd8 {[%emt 0:00:00]} Ke7 63. Rc8 d3 {[%emt 0:02:29]} 64. Rc1 {[%emt 0:03:00]} Rb4 {[%emt 0:00:55]} 65. Rd1 {[%emt 0:00:50]} Rxb2 {[%emt 0:00:03]} 66. Rxd3 {[%emt 0:00:06]} Kf6 {[%emt 0:00:16]} 67. Kxh4 {[%emt 0:00:33]} Rh2+ {[%emt 0:00:20]} 68. Kg3 {[%emt 0:00:04]} Ra2 {[%emt 0:00:05]} 69. Rd5 {[%emt 0:00:13]} Kg6 {[%emt 0:00:09]} 70. Rd8 {[%emt 0:00:56]} Ra1 {[%emt 0:00:30]} 71. Kf4 {[%emt 0:00:11]} Rf1+ {[%emt 0:00:07]} 72. Ke3 {[%emt 0:00:11]} Ra1 {[%emt 0:00:53]} 73. Kf3 {[%emt 0:00:05]} Rf1+ {[%emt 0:00:24]} 74. Ke2 {[%emt 0:00:04]} Ra1 {[%emt 0:00:05]} 75. Kf3 {[%emt 0:00:16]} Rf1+ {[%emt 0:00:10]} 76. Kg2 {[%emt 0:00:02]} Ra1 77. Rd5 {[%emt 0:00:10]} Ra3 {[%emt 0:00:12]} 78. Rd8 {[%emt 0:00:12]} Rb3 {[%emt 0:00:08]} 79. Kg1 {[%emt 0:00:02]} Ra3 {[%emt 0:00:06]} 80. Kf2 {[%emt 0:00:29]} Rb3 {[%emt 0:00:06]} 81. Re8 {[%emt 0:00:03]} Ra3 {[%emt 0:00:15]} 82. Re3 {[%emt 0:00:02]} Rxe3 {[%emt 0:01:20]} 83. Kxe3 {[%emt 0:00:00]} Kg5 {[%emt 0:00:06]} 84. Kf3 {[%emt 0:00:02]} Kg6 {[%emt 0:00:05]} 85. Kf4 {[%emt 0:00:01]} Kf6 {[%emt 0:00:05]} 86. g5+ {[%emt 0:00:02]} Kg6 {[%emt 0:00:04]} 87. Kg4 {[%emt 0:00:01]} Kg7 {[%emt 0:00:07]} 88. Kf5 {[%emt 0:00:01]} Kf7 {[%emt 0:00:05]} 89. g6+ {[%emt 0:00:01]} Kg7 {[%emt 0:00:06]} 90. Kg5 {[%emt 0:00:03]} Kg8 {[%emt 0:00:04]} 91. Kh6 {[%emt 0:00:05]} Kh8 {[%emt 0:00:03]} 92. g7+ {[%emt 0:00:02]} Kg8 {[%emt 0:00:04]} 93. Kg6 {[%emt 0:00:13]} 1/2-1/2

[Event "DMP Ekstraliga 2020"]
[Site "Krakow"]
[Date "2020.08.31"]
[Round "6.30"]
[White "Kiolbasa, Oliwia"]
[Black "Leks, Maria"]
[Result "1-0"]
[ECO "C84"]
[WhiteElo "2160"]
[BlackElo "2080"]
[Annotator "ChessBase"]
[PlyCount "151"]
[EventDate "2020.08.26"]
[EventType "team-tourn"]
[EventCountry "POL"]
[SourceTitle "playchess.com"]
[Source "ChessBase"]
[SourceQuality "1"]
[WhiteTeam "Miedz Legnica"]
[BlackTeam "Dwie Wieze Krakow"]
[TimeControl "30/5400+30:1800+30"]

1. e4 {[%emt 0:00:00]} e5 {[%emt 0:00:00]} 2. Nf3 {[%emt 0:00:00]} Nc6 {[%emt 0:00:00]} 3. Bb5 {[%emt 0:00:00]} a6 {[%emt 0:00:00]} 4. Ba4 {[%emt 0:00:02]} Nf6 {[%emt 0:00:00]} 5. O-O {[%emt 0:00:14]} Be7 {[%emt 0:00:00]} 6. d3 {[%emt 0:00:11]} b5 {[%emt 0:00:02]} 7. Bb3 {[%emt 0:00:08]} d6 {[%emt 0:00:18]} 8. a3 {[%emt 0:00:11]} O-O {[%emt 0:04:40]} 9. Nc3 {[%emt 0:00:11]} Na5 {[%emt 0:00:12]} 10. Ba2 {[%emt 0:00:09]} c5 {[%emt 0:00:46]} 11. b4 {[%emt 0:00:26]} Nc6 {[%emt 0:00:12]} 12. Nd5 {[%emt 0:00:15]} Be6 {[%emt 0:04:28]} 13. c3 {[%emt 0:00:17]} Rc8 {[%emt 0:00:45]} 14. Be3 {[%emt 0:01:29]} Nb8 {[%emt 0:13:51]} 15. Nxf6+ {[%emt 0:22:51]} Bxf6 {[%emt 0:00:09]} 16. Bxe6 {[%emt 0:00:07]} fxe6 {[%emt 0:00:04]} 17. bxc5 {[%emt 0:00:07]} dxc5 {[%emt 0:00:06]} 18. a4 {[%emt 0:00:05]} b4 {[%emt 0:11:07]} 19. cxb4 {[%emt 0:05:27]} cxb4 {[%emt 0:02:33]} 20. Qb3 {[%emt 0:02:46]} Qd6 {[%emt 0:04:24]} 21. Rac1 {[%emt 0:01:22]} a5 {[%emt 0:01:08]} 22. Nd2 {[%emt 0:05:08]} Rxc1 {[%emt 0:17:42]} 23. Rxc1 {[%emt 0:00:26]} Rd8 {[%emt 0:00:05]} 24. Nc4 {[%emt 0:07:09]} Qxd3 {[%emt 0:00:34]} 25. Nxa5 {[%emt 0:11:21]} Qxb3 {[%emt 0:02:28]} 26. Nxb3 {[%emt 0:00:51]} Rd3 {[%emt 0:00:12]} 27. Nd2 {[%emt 0:16:46]} Kf7 {[%emt 0:17:17]} 28. a5 {[%emt 0:00:10]} Ra3 {[%emt 0:06:59]} 29. Nc4 {[%emt 0:01:31]} Ra2 {[%emt 0:01:52]} 30. g3 {[%emt 0:04:15]} Na6 {[%emt 0:01:26]} 31. Rd1 {[%emt 0:30:12]} Rc2 {[%emt 0:37:25]} 32. Rd6 {[%emt 0:00:56]} Rxc4 {[%emt 0:00:08]} 33. Rxa6 {[%emt 0:00:08]} b3 {[%emt 0:00:11]} 34. Rb6 {[%emt 0:01:25]} Ra4 {[%emt 0:00:06]} 35. a6 {[%emt 0:01:19]} Be7 {[%emt 0:02:24]} 36. Kg2 {[%emt 0:04:58]} b2 {[%emt 0:00:18]} 37. Rxb2 {[%emt 0:00:24]} Rxa6 {[%emt 0:00:03]} 38. Rb7 {[%emt 0:00:08]} Kf6 {[%emt 0:02:09]} 39. g4 {[%emt 0:03:41]} h6 {[%emt 0:02:40]} 40. h4 {[%emt 0:00:00]} Bd6 {[%emt 0:00:00]} 41. h5 {[%emt 0:00:00]} Ra2 {[%emt 0:00:00]} 42. Kg3 {[%emt 0:00:00]} Rc2 {[%emt 0:00:00]} 43. g5+ {[%emt 0:00:00]} hxg5 {[%emt 0:00:00]} 44. Rd7 {[%emt 0:00:00]} Ba3 {[%emt 0:00:58]} 45. Kg4 {[%emt 0:00:00]} Bc1 {[%emt 0:01:36]} 46. Bb6 {[%emt 0:00:00]} Rc8 {[%emt 0:01:06]} 47. Bd8+ {[%emt 0:00:00]} Rxd8 {[%emt 0:00:04]} 48. Rxd8 {[%emt 0:00:03]} Bf4 {[%emt 0:00:51]} 49. Rd7 {[%emt 0:02:21]} Bc1 {[%emt 0:00:16]} 50. f3 {[%emt 0:02:23]} Bf4 {[%emt 0:00:40]} 51. Kh3 {[%emt 0:00:37]} g6 {[%emt 0:00:31]} 52. hxg6 {[%emt 0:00:27]} Kxg6 {[%emt 0:00:04]} 53. Kg2 {[%emt 0:00:04]} Bc1 {[%emt 0:00:39]} 54. Kf2 {[%emt 0:00:17]} Bf4 {[%emt 0:00:30]} 55. Ke2 {[%emt 0:00:06]} Bc1 {[%emt 0:00:27]} 56. Rd1 {[%emt 0:03:47]} Bf4 {[%emt 0:00:40]} 57. Rg1 {[%emt 0:00:06]} Kf6 {[%emt 0:00:49]} 58. Kd3 {[%emt 0:00:05]} Ke7 {[%emt 0:00:17]} 59. Kc4 {[%emt 0:00:03]} Kd6 {[%emt 0:00:45]} 60. Kb5 {[%emt 0:00:19]} Be3 {[%emt 0:00:14]} 61. Ra1 {[%emt 0:01:20]} Bd4 {[%emt 0:00:17]} 62. Ra8 {[%emt 0:00:33]} Kd7 {[%emt 0:00:24]} 63. Ka6 {[%emt 0:00:45]} Kc7 {[%emt 0:01:00]} 64. Re8 {[%emt 0:00:20]} Kd7 {[%emt 0:00:31]} 65. Rg8 {[%emt 0:00:07]} Be3 {[%emt 0:00:02]} 66. Kb7 {[%emt 0:00:08]} Kd6 {[%emt 0:00:13]} 67. Rg7 {[%emt 0:00:37]} Bf4 {[%emt 0:00:42]} 68. Kc8 {[%emt 0:00:10]} Be3 {[%emt 0:00:55]} 69. Kd8 {[%emt 0:00:19]} Kc5 {[%emt 0:00:39]} 70. Rd7 {[%emt 0:00:19]} Kc4 {[%emt 0:00:21]} 71. Ke7 {[%emt 0:00:18]} Bd4 {[%emt 0:00:05]} 72. Kxe6 {[%emt 0:00:33]} Kd3 {[%emt 0:00:06]} 73. Kf5 {[%emt 0:00:40]} Ke2 {[%emt 0:00:14]} 74. Kxg5 {[%emt 0:01:00]} Kxf3 {[%emt 0:00:05]} 75. Kf5 {[%emt 0:00:03]} Kg3 {[%emt 0:01:00]} 76. Re7 {[%emt 0:00:15]} 1-0

[Event "DMP Ekstraliga 2020"]
[Site "Krakow"]
[Date "2020.09.01"]
[Round "7.2"]
[White "Bluebaum, Matthias"]
[Black "Heberla, Bartlomiej"]
[Result "1-0"]
[ECO "D02"]
[WhiteElo "2647"]
[BlackElo "2566"]
[Annotator "RC"]
[PlyCount "77"]
[EventDate "2020.08.26"]
[EventType "team-tourn"]
[EventCountry "POL"]
[SourceTitle "playchess.com"]
[Source "ChessBase"]
[SourceQuality "1"]
[WhiteTeam "Stilon Gorzow"]
[BlackTeam "Miedz Legnica"]
[TimeControl "30/5400+30:1800+30"]

1. d4 {[%emt 0:00:00]} d5 {[%emt 0:00:00]} 2. Nf3 {[%emt 0:00:00]} e6 {[%emt 0:00:00]} 3. c4 {[%emt 0:00:00]} a6 {[%emt 0:00:09]} 4. cxd5 {[%emt 0:00:11]} exd5 {[%emt 0:00:04]} 5. Nc3 {[%emt 0:00:08]} Nf6 {[%emt 0:00:06]} 6. Bf4 {[%emt 0:01:45]} Bd6 {[%emt 0:00:12]} 7. Bg3 {[%emt 0:00:05]} O-O {[%emt 0:01:29]} 8. e3 {[%emt 0:00:09]} Bg4 {[%emt 0:02:41]} 9. Bd3 {[%emt 0:05:30]} Re8 {[%emt 0:17:36]} 10. Bh4 {[%emt 0:08:49]} c6 {[%emt 0:04:26]} 11. Qb3 {[%emt 0:01:11]} b5 {[%emt 0:02:08]} 12. Qc2 {[%emt 0:07:51]} h6 {[%emt 0:00:30]} 13. h3 {[%emt 0:04:44]} Bxf3 {[%emt 0:07:23]} 14. gxf3 {[%emt 0:00:04]} Nbd7 {[%emt 0:01:04]} 15. O-O-O {[%emt 0:06:13]} Be7 {[%emt 0:07:06]} 16. Kb1 {[%emt 0:03:19]} Nb6 {[%emt 0:03:11]} 17. Rhg1 {[%emt 0:03:17]} Kh8 {[%emt 0:04:20]} 18. Ne2 {[%emt 0:04:26]} Nc4 {[%emt 0:01:12]} 19. Ng3 {[%emt 0:05:28]} Ng8 {[%emt 0:36:31]} 20. Bxe7 {[%emt 0:17:23]} Nxe7 {[%emt 0:00:15]} 21. Nh5 {[%emt 0:01:04]} g6 {[%emt 0:00:18]} 22. Nf6 {[%emt 0:00:05]} Rf8 {[%emt 0:00:14]} 23. f4 {[%emt 0:00:14]} Qd6 {[%emt 0:06:01]} 24. Ng4 {[%emt 0:00:04]} f5 {[%emt 0:00:10]} 25. Ne5 {[%emt 0:00:44]} Nxe5 {[%emt 0:01:17]} 26. fxe5 {[%emt 0:00:08]} Qe6 {[%emt 0:00:03]} 27. h4 {[%emt 0:00:47]} Rac8 {[%emt 0:00:26]} 28. f4 {[%emt 0:01:08]} h5 {[%emt 0:00:13]} 29. Rg5 {[%emt 0:00:10]} Rg8 {[%emt 0:01:15]} 30. Rdg1 {[%emt 0:00:22]} Rg7 {[%emt 0:01:06]} 31. Qc5 {[%emt 0:31:50]} Rcg8 {[%emt 0:30:33]} 32. Qd6 {[%emt 0:00:22]} Qc8 {[%emt 0:02:27]} 33. Be2 {[%emt 0:00:50]} Rd8 {[%emt 0:00:24]} 34. Rxh5+ {[%emt 0:03:35]} Kg8 {[%emt 0:00:07]} 35. Qc5 {[%emt 0:00:03]} gxh5 {[%emt 0:00:58]} 36. Rxg7+ {[%emt 0:00:05]} Kxg7 {[%emt 0:00:08]} 37. Qxe7+ {[%emt 0:00:03]} Kh8 {[%emt 0:01:02]} 38. Qf6+ {[%emt 0:00:26]} Kg8 {[%emt 0:00:13]} 39. Bxh5 {[%emt 0:03:04]} 1-0

[Event "DMP Ekstraliga 2020"]
[Site "Krakow"]
[Date "2020.09.01"]
[Round "7.9"]
[White "Hnydiuk, Aleksander"]
[Black "Leniart, Arkadiusz"]
[Result "1/2-1/2"]
[ECO "A05"]
[WhiteElo "2411"]
[BlackElo "2482"]
[Annotator "RC"]
[PlyCount "44"]
[EventDate "2020.08.26"]
[EventType "team-tourn"]
[EventCountry "POL"]
[SourceTitle "playchess.com"]
[Source "ChessBase"]
[SourceQuality "1"]
[WhiteTeam "Wieza Pegow"]
[BlackTeam "Dwie Wieze Krakow"]
[TimeControl "30/5400+30:1800+30"]

1. Nf3 {[%emt 0:05:07]} Nf6 {[%emt 0:00:02]} 2. c4 {[%emt 0:00:05]} e6 {[%emt 0:00:06]} 3. g3 {[%emt 0:00:08]} d5 {[%emt 0:02:32]} 4. d4 {[%emt 0:00:05]} Bb4+ {[%emt 0:00:18]} 5. Bd2 {[%emt 0:00:20]} Be7 {[%emt 0:00:07]} 6. Bg2 {[%emt 0:00:05]} O-O {[%emt 0:00:51]} 7. O-O {[%emt 0:00:03]} Nbd7 {[%emt 0:01:04]} 8. Qc2 {[%emt 0:00:10]} Ne4 {[%emt 0:00:27]} 9. Nc3 {[%emt 0:01:41]} Nxd2 {[%emt 0:00:07]} 10. Nxd2 {[%emt 0:00:19]} c6 {[%emt 0:00:17]} 11. e4 dxc4 {[%emt 0:00:14]} 12. Nxc4 {[%emt 0:07:14]} Nb6 {[%emt 0:00:06]} 13. Qd3 {[%emt 0:09:40]} Nxc4 {[%emt 0:16:38]} 14. Qxc4 {[%emt 0:00:02]} b5 {[%emt 0:02:26]} 15. Qxc6 {[%emt 0:12:49]} Bd7 {[%emt 0:00:25]} 16. Qa6 {[%emt 0:00:37]} b4 {[%emt 0:04:06]} 17. Ne2 {[%emt 0:00:25]} Rb8 {[%emt 0:03:05]} 18. Rfe1 {[%emt 0:13:35]} Bb5 {[%emt 0:03:53]} 19. Qxa7 {[%emt 0:00:05]} Ra8 {[%emt 0:01:31]} 20. Qb7 {[%emt 0:00:03]} Rb8 {[%emt 0:00:26]} 21. Qa7 {[%emt 0:00:03]} Ra8 {[%emt 0:05:46]} 22. Qb7 {[%emt 0:00:06]} Rb8 {[%emt 0:15:48]} 1/2-1/2

[Event "DMP Ekstraliga 2020"]
[Site "Krakow"]
[Date "2020.09.01"]
[Round "7.27"]
[White "Miton, Kamil"]
[Black "Nurkiewicz, Maciej"]
[Result "1/2-1/2"]
[ECO "A56"]
[WhiteElo "2590"]
[BlackElo "2326"]
[Annotator "RC"]
[PlyCount "71"]
[EventDate "2020.08.26"]
[EventType "team-tourn"]
[EventCountry "POL"]
[SourceTitle "playchess.com"]
[Source "ChessBase"]
[SourceQuality "1"]
[WhiteTeam "HETMAN Katowice"]
[BlackTeam "Wrzos Miedzyborow"]
[TimeControl "30/5400+30:1800+30"]

1. d4 {[%emt 0:00:00]} Nf6 {[%emt 0:00:00]} 2. c4 {[%emt 0:00:00]} c5 {[%emt 0:00:00]} 3. Nf3 {[%emt 0:00:01]} e6 {[%emt 0:01:40]} 4. Nc3 {[%emt 0:02:49]} a6 {[%emt 0:09:24]} 5. e4 {[%emt 0:11:44]} cxd4 {[%emt 0:00:42]} 6. Nxd4 {[%emt 0:00:06]} Qc7 {[%emt 0:01:01]} 7. Be2 {[%emt 0:02:54]} Be7 {[%emt 0:04:35]} 8. O-O {[%emt 0:01:11]} O-O {[%emt 0:00:15]} 9. Be3 {[%emt 0:05:29]} d6 {[%emt 0:00:29]} 10. Qd2 {[%emt 0:02:47]} Nbd7 {[%emt 0:00:48]} 11. f3 {[%emt 0:01:30]} b6 {[%emt 0:00:35]} 12. Rfc1 {[%emt 0:16:03]} Bb7 {[%emt 0:00:35]} 13. b4 {[%emt 0:00:55]} Rac8 {[%emt 0:08:34]} 14. Na4 {[%emt 0:00:49]} Qb8 {[%emt 0:04:36]} 15. Rab1 {[%emt 0:00:40]} Rfe8 {[%emt 0:12:04]} 16. Kh1 {[%emt 0:02:50]} Bd8 {[%emt 0:19:43]} 17. Bg1 {[%emt 0:08:02]} Qa8 {[%emt 0:03:17]} 18. Bf1 {[%emt 0:02:49]} Bc7 {[%emt 0:04:17]} 19. c5 {[%emt 0:06:46]} dxc5 {[%emt 0:01:21]} 20. bxc5 {[%emt 0:00:36]} bxc5 {[%emt 0:00:19]} 21. Nxc5 {[%emt 0:01:09]} Nxc5 {[%emt 0:00:15]} 22. Rxc5 {[%emt 0:00:13]} Nd7 {[%emt 0:08:18]} 23. Rc2 {[%emt 0:03:21]} Be5 {[%emt 0:01:00]} 24. Nb3 {[%emt 0:01:59]} Rxc2 {[%emt 0:02:43]} 25. Qxc2 {[%emt 0:00:06]} Bc6 {[%emt 0:03:33]} 26. Na5 {[%emt 0:03:26]} Bb5 {[%emt 0:00:08]} 27. Bxb5 {[%emt 0:01:19]} axb5 {[%emt 0:00:06]} 28. Rxb5 {[%emt 0:00:09]} Rc8 {[%emt 0:01:20]} 29. Qd2 {[%emt 0:01:53]} Rc7 {[%emt 0:00:35]} 30. Nb3 {[%emt 0:02:46]} Qc8 {[%emt 0:01:41]} 31. a4 {[%emt 0:37:26]} Rc2 {[%emt 0:31:06]} 32. Qd1 {[%emt 0:01:47]} h6 {[%emt 0:02:50]} 33. a5 {[%emt 0:05:26]} Ra2 {[%emt 0:01:54]} 34. Nc5 {[%emt 0:01:04]} Nxc5 {[%emt 0:01:37]} 35. Rxc5 {[%emt 0:00:45]} Qb8 {[%emt 0:00:42]} 36. Rc2 {[%emt 0:02:53]} 1/2-1/2

[Event "DMP Ekstraliga 2020"]
[Site "Krakow"]
[Date "2020.09.01"]
[Round "7.28"]
[White "Bartel, Michal"]
[Black "Sadzikowski, Daniel"]
[Result "1/2-1/2"]
[ECO "C12"]
[WhiteElo "2274"]
[BlackElo "2522"]
[Annotator "RC"]
[PlyCount "52"]
[EventDate "2020.08.26"]
[EventType "team-tourn"]
[EventCountry "POL"]
[SourceTitle "playchess.com"]
[Source "ChessBase"]
[SourceQuality "1"]
[WhiteTeam "Wrzos Miedzyborow"]
[BlackTeam "HETMAN Katowice"]
[TimeControl "30/5400+30:1800+30"]

1. e4 {[%emt 0:00:00]} e6 {[%emt 0:00:00]} 2. d4 {[%emt 0:00:46]} d5 {[%emt 0:00:00]} 3. Nc3 {[%emt 0:00:12]} Nf6 {[%emt 0:00:25]} 4. Bg5 {[%emt 0:04:48]} Bb4 {[%emt 0:00:25]} 5. e5 {[%emt 0:03:10]} h6 {[%emt 0:00:11]} 6. Bh4 {[%emt 0:03:33]} g5 {[%emt 0:00:06]} 7. Bg3 {[%emt 0:00:02]} Ne4 {[%emt 0:00:57]} 8. Nge2 {[%emt 0:01:03]} c5 {[%emt 0:07:01]} 9. a3 {[%emt 0:03:47]} Bxc3+ {[%emt 0:13:40]} 10. Nxc3 {[%emt 0:01:44]} cxd4 {[%emt 0:11:23]} 11. Qxd4 {[%emt 0:01:20]} Nc6 {[%emt 0:00:15]} 12. Bb5 {[%emt 0:00:16]} Nxc3 {[%emt 0:11:01]} 13. Qxc3 {[%emt 0:00:28]} Qb6 {[%emt 0:00:34]} 14. Bxc6+ {[%emt 0:01:31]} Qxc6 {[%emt 0:00:46]} 15. Qxc6+ {[%emt 0:00:13]} bxc6 {[%emt 0:00:02]} 16. h4 {[%emt 0:00:30]} Rg8 {[%emt 0:04:48]} 17. hxg5 {[%emt 0:00:10]} hxg5 {[%emt 0:00:02]} 18. Kd2 {[%emt 0:04:26]} c5 {[%emt 0:00:40]} 19. b4 {[%emt 0:00:09]} Ba6 {[%emt 0:01:42]} 20. Rab1 {[%emt 0:03:11]} cxb4 {[%emt 0:05:23]} 21. axb4 {[%emt 0:00:41]} Bb5 {[%emt 0:00:39]} 22. f3 {[%emt 0:01:11]} d4 {[%emt 0:04:23]} 23. Bf2 {[%emt 0:01:32]} O-O-O {[%emt 0:00:19]} 24. Rh7 {[%emt 0:01:48]} g4 {[%emt 0:01:43]} 25. Rxf7 {[%emt 0:04:14]} gxf3 {[%emt 0:08:00]} 26. Rxf3 {[%emt 0:00:42]} Rxg2 {[%emt 0:04:13]} 1/2-1/2